Cogmind - Beta 10.2 @@@ ROGUE MODE // 2021.05.29 @ 02:12:45 Player: Vagkalis Result: Destroyed by ME-RLN with Improved Arc Thrower Performance ------------- Evolutions (1) 500 Regions Visited (5) 1000 Robots Destroyed (34) 170 Value Destroyed (817) 817 Prototype IDs (4) 80 Alien Tech Used (0) 0 Bonus (-985) -985 TOTAL SCORE: 1582 Bonus ------- Follower Combat Kills 33 Friendly Fire -1018 Cogmind --------- Core Integrity 0/400 Matter 256/300 Energy 310/310 System Corruption 8% Temperature Cool (42) Movement Treading (200) Ox2 Location -8/Mines Parts ------- > --- POWER (1) -------- Reinforced Fission Core > --- PROPULSION (2) --- Light Treads Light Treads > --- UTILITY (4) ------ Large Storage Unit Large Storage Unit Large Storage Unit Improved Light Armor Plating > --- WEAPON (2) ------- 8R-AWN's Boregun 8R-AWN's Boregun > --- INVENTORY (22) --- Improved Ion Engine Light Treads Advanced Myomer Leg Advanced Myomer Leg Experimental Heat Sink Large Storage Unit High-capacity Matter Pod (200) Gravity Neutralizing Apparatus Gravity Neutralizing Apparatus Experimental Targeting Computer Advanced Weapon Cycler Improved Light Armor Plating AS-neutralizer No. 17b Heavy Assault Rifle Heavy Assault Rifle Heavy Assault Rifle Heavy Assault Rifle Advanced Assault Cannon Mini Grenade Launcher Mini Grenade Launcher Power Maul Peak State ------------ > --- POWER ------------ Reinforced Fission Core > --- PROPULSION ------- Light Treads Light Treads > --- UTILITY ---------- Large Storage Unit Large Storage Unit Large Storage Unit Improved Light Armor Plating > --- WEAPON ----------- 8R-AWN's Boregun 8R-AWN's Boregun > --- INVENTORY -------- Improved Ion Engine Light Treads Advanced Myomer Leg Advanced Myomer Leg Experimental Heat Sink Large Storage Unit High-capacity Matter Pod Gravity Neutralizing Apparatus Gravity Neutralizing Apparatus Experimental Targeting Computer Advanced Weapon Cycler Improved Light Armor Plating AS-neutralizer No. 17b Heavy Assault Rifle Heavy Assault Rifle Heavy Assault Rifle Heavy Assault Rifle Advanced Assault Cannon Mini Grenade Launcher Mini Grenade Launcher Power Maul [Rating: 42] Favorites ----------- Power Improved Ion Engine Engine Improved Ion Engine Power Core Light Nuclear Core Propulsion Light Treads Treads Light Treads Wheel Armored Wheel Utility Large Storage Unit Device Integration Mediator Storage Large Storage Unit Processor Improved Salvage Targeting Computer Protection Core Shielding Weapon Light Assault Rifle Energy Gun Small Laser Ballistic Gun Light Assault Rifle Launcher Mini Grenade Launcher Build | -11 -10 -9 -9 -9 -8 ------- Run | Scr Mat Mat Min Exi Min Slots Evolved 2 | . . 2 . . . Power . | . . . . . . Propulsion . | . . . . . . Utility 2 | . . 2 . . . Weapon . | . . . . . . Parts Attached 72 | 7 4 24 10 25 2 Power 8 | 1 1 3 1 2 . Engine 6 | 1 . 3 1 1 . Core 2 | . 1 . . 1 . Reactor . | . . . . . . Propulsion 20 | 3 . 6 6 5 . Treads 16 | 2 . 5 4 5 . Leg . | . . . . . . Wheel 4 | 1 . 1 2 . . Hover . | . . . . . . Flight . | . . . . . . Utility 19 | 1 1 6 1 10 . Device 2 | . 1 1 . . . Storage 10 | 1 . 4 . 5 . Processor 1 | . . . . 1 . Hackware . | . . . . . . Protection 6 | . . 1 1 4 . Artifact . | . . . . . . Weapon 25 | 2 2 9 2 8 2 Energy Gun 9 | 1 1 4 1 2 . Energy Cannon . | . . . . . . Ballistic Gun 14 | 1 1 5 1 4 2 Ballistic Cannon . | . . . . . . Launcher 2 | . . . . 2 . Special Weapon . | . . . . . . Impact Weapon . | . . . . . . Slashing Weapon . | . . . . . . Piercing Weapon . | . . . . . . Special Melee Weapon . | . . . . . . Unidentified Prototypes 2 | . . 1 . . 1 Parts Lost 20 | . 3 10 . 7 . Power 4 | . 1 2 . 1 . Propulsion 5 | . . 2 . 3 . Utility 1 | . . 1 . . . Weapon 10 | . 2 5 . 3 . Highest Loss Streak 8 | . 2 8 . 4 . Average Slot Usage (%) 95 | . 92 94 98 98 100 Engine 7 | . 12 6 10 7 . Core 2 | . 1 3 . 3 11 Treads 12 | . 14 11 10 14 22 Wheel 8 | . 14 9 10 6 . Device 2 | . 9 4 . . . Storage 28 | . 14 26 33 32 33 Processor 1 | . . . . 3 . Protection 9 | . . 10 11 7 11 Energy Gun 6 | . 12 5 10 4 . Ballistic Gun 14 | . 15 15 10 13 22 Launcher 1 | . . . . 4 . Naked Turns . | . . . . . . Heaviest Build 78 | 9 12 59 77 78 78 Greatest Support 40 | 40 10 20 20 40 40 Greatest Overweight (x) 4 | . 1 4 4 3 1 Average Overweight (x) 2 | . . 1 3 2 1 Largest Inventory Capacity 22 | 6 6 22 22 22 22 Average Capacity 18 | 5 6 17 22 21 22 Most Carried 22 | 4 6 21 22 22 21 Average Carried 16 | 1 5 13 21 20 21 Final Capacity 22 | 6 6 22 22 22 22 Final Carried 22 | 3 5 20 22 21 21 Class Distribution -------------------- 66% | Hauler-Mutant 33% | Mutant Dominant Class ---------------- Mutant | -10/Materials Mutant | -9/Materials Hauler-Mutant | -9/Mines Hauler-Mutant | -9/Exiles Hauler-Mutant | -8/Mines Resources | -11 -10 -9 -9 -9 -8 ----------- Run | Scr Mat Mat Min Exi Min Matter Collected 1381 | 204 116 451 60 550 . Remotely . | . . . . . . Salvage Created 1399 | . 223 1039 . 137 . Parts 87 | . 8 68 . 11 . Haulers Intercepted 2 | . . 2 . . . Recyclers Shooed 3 | . . 3 . . . Parts Field Recycled . | . . . . . . Retrieved Matter . | . . . . . . Parts Self-Destructed . | . . . . . . Prevented . | . . . . . . Kills | -11 -10 -9 -9 -9 -8 ------- Run | Scr Mat Mat Min Exi Min Combat Hostiles Destroyed 29 | . 6 21 . 2 . Guns 28 | . 6 21 . 1 . AOE 1 | . . . . 1 . Classes Destroyed 8 | . 2 5 . 1 . Worker 2 | . . 2 . . . Hauler 2 | . . 2 . . . Recycler 2 | . . 2 . . . Swarmer 9 | . 1 8 . . . Grunt 12 | . 5 7 . . . Brawler 1 | . . 1 . . . Sentry 5 | . . 5 . . . Assembled 7 | . . . . 7 . Best Kill Streak 6 | . 2 6 . 1 . Combat Bots Only 5 | . 2 5 . 1 . Max Kills in Single Turn 6 | . 1 2 . 6 . Gunslinging 1 | . . 1 . . . Exploded 1 | . . . . 1 . Melee . | . . . . . . Uniques/NPCs Destroyed 1 | . . . . 1 . 8R-AWN (-9/Exiles) Combat | -11 -10 -9 -9 -9 -8 -------- Run | Scr Mat Mat Min Exi Min Damage Taken 3204 | . 371 1491 31 1238 73 Core 438 | . 37 181 . 216 4 Absorbed by Shields . | . . . . . . Core Remaining (%) 92 | 100 85 . . . . Volleys Fired 176 | . 25 97 1 51 2 Largest 2 | . 2 2 2 2 2 Hottest 79 | . 60 76 60 79 60 Shots Fired 334 | . 44 185 2 99 4 Gun 330 | . 44 185 2 95 4 Cannon . | . . . . . . Launcher 4 | . . . . 4 . Special . | . . . . . . Kinetic 247 | . 27 138 1 77 4 Thermal 83 | . 17 47 1 18 . Explosive 4 | . . . . 4 . Electromagnetic . | . . . . . . Robot Hit Streak 20 | . 12 20 1 12 4 Robot Miss Streak 4 | . 3 4 2 2 1 Penetration Max . | . . . . . . Secondary Targets 2 | . . 2 . . . Max Gunslinging Chain 1 | . . 1 . . . Shots Hit Robots 243 | . 32 129 1 78 3 Core Hits 94 | . 15 55 1 23 . Critical Hits 2 | . . 1 . . 1 Critical Kills . | . . . . . . Critical Parts Destroyed 2 | . . 1 . . 1 Melee Attacks . | . . . . . . Impact . | . . . . . . Slashing . | . . . . . . Piercing . | . . . . . . Sneak Attacks . | . . . . . . Combat Hostiles . | . . . . . . Follow-up Attacks . | . . . . . . Damage Inflicted 3001 | . 298 1310 7 1337 49 Guns 2536 | . 298 1310 7 872 49 Cannons . | . . . . . . Explosions 459 | . . . . 459 . Melee . | . . . . . . Ramming 6 | . . . . 6 . Kinetic 2005 | . 159 930 7 860 49 Thermal 531 | . 139 380 . 12 . Explosive 459 | . . . . 459 . Electromagnetic . | . . . . . . Impact . | . . . . . . Slashing . | . . . . . . Piercing . | . . . . . . Highest Corruption 8 | . . 7 7 7 8 Average Corruption 6 | . . 6 7 7 7 Corruption Purged . | . . . . . . Effects 118 | . . 56 19 42 1 Message Errors 24 | . . 14 2 8 . Matter Fused 21 | . . 7 9 5 . Heat Flow Errors 12 | . . 5 3 4 . Energy Discharges 13 | . . 6 3 4 . Parts Rejected 2 | . . 1 . 1 . Data Loss (minor) 10 | . . 3 2 5 . Data Loss (major) 7 | . . 2 . 5 . Misfires 3 | . . 3 . . . Targeting Errors 22 | . . 14 . 7 1 Weapon Failures 4 | . . 1 . 3 . Overload Shots . | . . . . . . Overflow Damage 1 | . . . . 1 . Projectiles . | . . . . . . Explosions 1 | . . . . 1 . Melee . | . . . . . . Knockbacks . | . . . . . . Impact . | . . . . . . Kinetic . | . . . . . . Secondary . | . . . . . . Self-Inflicted Damage . | . . . . . . Shots . | . . . . . . Rammed 3 | . . . . 3 . Targets Rammed 3 | . . . . 3 . Kicked . | . . . . . . Crushed . | . . . . . . Highest Temperature 260 | . 94 260 178 252 42 Average Temperature 58 | . 27 51 74 74 19 Received Heat Transfer 708 | . 201 480 9 . 18 Effects 2 | . . . . 2 . Interference 2 | . . . . 2 . Siege Activations . | . . . . . . Robots Corrupted . | . . . . . . Combat Hostiles . | . . . . . . Parts Fried . | . . . . . . Impact Corruptions . | . . . . . . Robots Melted . | . . . . . . Combat Hostiles . | . . . . . . Parts Melted 1 | . 1 . . . . Heat Transferred 1299 | . 325 884 . 90 . Parts Sabotaged . | . . . . . . Parts Stolen . | . . . . . . Parts Stripped . | . . . . . . Power Chain Reactions . | . . . . . . Missiles Intercepted . | . . . . . . Alert | -11 -10 -9 -9 -9 -8 ------- Run | Scr Mat Mat Min Exi Min Peak Influence 357 | . 174 357 106 . . Initial 106 | . . 73 106 . . Average 146 | . 86 186 81 . . Maximum Alert Level 1 | . . 1 . . . Low Security (%) 75 | 100 100 62 100 . 100 Level 1 24 | . . 37 . . . Level 2 . | . . . . . . Level 3 . | . . . . . . Level 4 . | . . . . . . Level 5 . | . . . . . . High Security . | . . . . . . Max Security . | . . . . . . Squads Dispatched 4 | . 2 2 . . . Investigation 2 | . 1 1 . . . Extermination . | . . . . . . Reinforcement 2 | . 1 1 . . . Assault . | . . . . . . Garrison . | . . . . . . Intercept . | . . . . . . Construction Impeded . | . . . . . . Haulers Reinforced . | . . . . . . Stealth | -11 -10 -9 -9 -9 -8 --------- Run | Scr Mat Mat Min Exi Min Distress Signals 7 | . 3 4 . . . Communications Jammed . | . . . . . . Distress Signals . | . . . . . . Times Spotted 52 | . 13 31 2 2 4 Peak Tracking Total 7 | . 4 7 2 3 1 Tactical Retreats 9 | . 2 6 . 1 . Traps | -11 -10 -9 -9 -9 -8 ------- Run | Scr Mat Mat Min Exi Min Traps Triggered 4 | . 1 1 2 . . Indirectly . | . . . . . . Trap Hack Attempts . | . . . . . . Triggered . | . . . . . . Disarmed . | . . . . . . Reprogrammed . | . . . . . . Reused . | . . . . . . Traps Extracted . | . . . . . . Installed . | . . . . . . Triggered . | . . . . . . Machines | -11 -10 -9 -9 -9 -8 ---------- Run | Scr Mat Mat Min Exi Min Machines Disabled 3 | . . . . 3 . Max in Single Turn 2 | . . . . 2 . Machines Sabotaged . | . . . . . . Garrisons Compromised . | . . . . . . Overloaded Fab Kills . | . . . . . . Fab Network Shutdowns . | . . . . . . Hacking | -11 -10 -9 -9 -9 -8 --------- Run | Scr Mat Mat Min Exi Min Machines Accessed 7 | . 3 3 1 . . Terminals 6 | . 3 3 . . . Fabricators . | . . . . . . Repair Stations . | . . . . . . Recycling Units . | . . . . . . Scanalyzers . | . . . . . . Garrison Access . | . . . . . . Total Hacks 12 | . 5 6 1 . . Successful 4 | . 2 1 1 . . Failed 8 | . 3 5 . . . Catastrophic 1 | . . 1 . . . Database Lockouts . | . . . . . . Manual 2 | . . 2 . . . Terminals 11 | . 5 6 . . . Fabricators . | . . . . . . Repair Stations . | . . . . . . Recycling Units . | . . . . . . Scanalyzers . | . . . . . . Garrison Access . | . . . . . . Terminal Hacks 4 | . 2 1 1 . . Prototype ID Bank 1 | . 1 . . . . Open Door 1 | . . . 1 . . Emergency Access Points 1 | . 1 . . . . Zone Layout 1 | . . 1 . . . Fabricator Hacks . | . . . . . . Repair Station Hacks . | . . . . . . Recycling Unit Hacks . | . . . . . . Scanalyzer . | . . . . . . Garrison Access Hacks . | . . . . . . Unauthorized Hacks . | . . . . . . Terminals . | . . . . . . Fabricators . | . . . . . . Repair Stations . | . . . . . . Recycling Units . | . . . . . . Scanalyzers . | . . . . . . Garrison Access . | . . . . . . Data Cores Recovered . | . . . . . . Used . | . . . . . . Hacking Detections 5 | . 2 3 . . . Full Trace Events 1 | . 1 . . . . Feedback Events . | . . . . . . Feedback Blocked . | . . . . . . Robot Schematics Acquired . | . . . . . . Robots Built . | . . . . . . Matter . | . . . . . . Time . | . . . . . . Total Robot Build Rating . | . . . . . . Part Schematics Acquired . | . . . . . . Parts Built . | . . . . . . Matter . | . . . . . . Time . | . . . . . . Total Part Build Rating . | . . . . . . Parts Repaired . | . . . . . . Time . | . . . . . . Parts Recycled . | . . . . . . Recycled Matter . | . . . . . . Retrieved Matter . | . . . . . . Retrieved Components . | . . . . . . Parts Scanalyzed . | . . . . . . Part Schematics Acquired . | . . . . . . Parts Damaged . | . . . . . . Bothacking | -11 -10 -9 -9 -9 -8 ------------ Run | Scr Mat Mat Min Exi Min Used RIF Installer . | . . . . . . Robots Hacked . | . . . . . . Non-combat . | . . . . . . Combat . | . . . . . . Robot Hacks Applied . | . . . . . . Relay Couplers Released . | . . . . . . Robots Rewired . | . . . . . . Allies Hacked . | . . . . . . Hacks Repelled . | . . . . . . Allies | -11 -10 -9 -9 -9 -8 -------- Run | Scr Mat Mat Min Exi Min Total Allies 5 | . . . 5 . . Largest Group 5 | . . . 5 5 . Highest-Rated Group 80 | . . . 80 80 . Highest-Rated Ally 31 | . . . 31 31 . Total Orders 3 | . . . . 3 . STAY 2 | . . . . 2 . FOLLOW 1 | . . . . 1 . Ally Attacks 6 | . . . 4 2 . Total Damage 79 | . . . 46 33 . Kills 1 | . . . 1 . . Allies Corrupted . | . . . . . . Allies Melted . | . . . . . . Intel | -11 -10 -9 -9 -9 -8 ------- Run | Scr Mat Mat Min Exi Min Robot Analysis Total . | . . . . . . Derelict Logs Recovered 1 | . . . 1 . . Drone Launches . | . . . . . . Drone Recoveries . | . . . . . . Exploration | -11 -10 -9 -9 -9 -8 ------------- Run | Scr Mat Mat Min Exi Min Turns Passed 3792 | 79 285 1659 554 1202 13 Spaces Moved 1801 | 56 153 743 364 482 3 Core 4 | 4 . . . . . Treads 1048 | 28 . 473 62 482 3 Legs . | . . . . . . Wheels 749 | 24 153 270 302 . . Hover . | . . . . . . Flight . | . . . . . . Fastest Speed 50 | 50 80 90 130 180 180 Average Speed 161 | 117 81 164 143 203 180 Slowest Speed 220 | 160 90 200 220 220 180 Overloaded Moves . | . . . . . . Propulsion Burnouts . | . . . . . . Robots Hopped . | . . . . . . Cave-ins Triggered . | . . . . . . Exploration Rate (%) 32 | 4 21 62 64 41 5 Regions Visited 5 Branch Regions 3 Pre-discovered Areas 1 | . . . 1 . . Known Exits Taken . | . . . . . . Unknown Exits Taken 5 | 1 1 1 1 1 . Scrap Searched . | . . . . . . Spaces Dug . | . . . . . . Terrain Destroyed 15 | . . . . 14 1 Melee . | . . . . . . Projectile 1 | . . . . . 1 AOE 14 | . . . . 14 . Terrain Rammed . | . . . . . . Walls Destroyed . | . . . . . . Machines Disabled . | . . . . . . Actions | -11 -10 -9 -9 -9 -8 --------- Run | Scr Mat Mat Min Exi Min Total 2365 | 66 274 1021 393 604 7 Wait 222 | . 89 114 7 12 . Move 1796 | 55 152 742 363 481 3 Hop . | . . . . . . Pick Up 61 | 3 4 32 7 15 . Fast Attach 22 | 6 2 3 4 7 . Attach 29 | 1 2 13 3 10 . Detach 3 | 1 . . . 2 . Swap 21 | . . 8 3 8 2 Drop 32 | . . 12 5 15 . Fire 176 | . 25 97 1 51 2 Melee . | . . . . . . Ram . | . . . . . . Kick . | . . . . . . Crush 3 | . . . . 3 . Escape Stasis . | . . . . . . Rewire . | . . . . . . Trap . | . . . . . . Miscellaneous . | . . . . . . Route ------- -11/Scrapyard -10/Materials -9/Materials (discovered 4 exits: [*Mat] / *Min / [*Sto x2]) -9/Mines (discovered 2 exits: [*Mat] / [*Exi]) -9/Exiles -8/Mines History --------- Turn | Location | Event 13 | -11/Scrapyard | Discovered new exit (range 15) 80 | -11/Scrapyard | Entered Materials 304 | -10/Materials | Build established: Mutant 363 | -10/Materials | Discovered new exit (range 4) 365 | -10/Materials | Entered another Materials area 365 | -9/Materials | Evolved 2 slots: Utility x2 974 | -9/Materials | Lost 8 parts (2p2n1u3w) 1103 | -9/Materials | Discovered new exit (range 9) 1239 | -9/Materials | Discovered new exit (range 14) 1312 | -9/Materials | Discovered new exit (range 15) 1536 | -9/Materials | Build established: Hauler-Mutant 1743 | -9/Materials | Discovered new exit (range 16) 2024 | -9/Materials | Entered Mines 2031 | -9/Mines | Met a Derelict who couldn't figure out how to use a Trap Extractor 2187 | -9/Mines | Discovered new exit (range 14) 2257 | -9/Mines | Received a Rocket Launcher from a helpful Derelict 2272 | -9/Mines | Learned location of Zion (-6) 2426 | -9/Mines | Assisted by bots powering up and referring to "LRC-V3" 2463 | -9/Mines | Joined a pair of Derelicts in attacking an 0b10 outpost 2562 | -9/Mines | Deemed a non-threat by the Exiles lab entrance 2564 | -9/Mines | Discovered new exit (range 5) 2578 | -9/Mines | Entered Exiles 2578 | -9/Exiles | Accompanied by 5 allies 2608 | -9/Exiles | Led the pair of lost Derelicts to a safe place 2628 | -9/Exiles | Discovered new exit (range 15) 2702 | -9/Exiles | Met 8R-AWN 2744 | -9/Exiles | Met EX-HEX 3059 | -9/Exiles | Met EX-DEC 3209 | -9/Exiles | Attacked by the Exiles 3244 | -9/Exiles | Core integrity fell below 50% 3298 | -9/Exiles | Lost 4 parts (1p1n2w) 3348 | -9/Exiles | Core integrity fell below 20% 3390 | -9/Exiles | Destroyed 8R-AWN 3422 | -9/Exiles | Found Prototype Ballistic Gun 3430 | -9/Exiles | Found Prototype Ballistic Gun 3443 | -9/Exiles | Found Prototype Processor 3453 | -9/Exiles | Found Prototype Device 3780 | -9/Exiles | Entered Mines 3786 | -8/Mines | ME-RLN came to Exiles' defense 3786 | -8/Mines | Identified 8R-AWN's Boregun (x2) 3793 | -8/Mines | Destroyed by ME-RLN with Improved Arc Thrower Last Messages --------------- 03737_ Identified Sml. Matter Pod. 03738_ Dropped Sml. Matter Pod. 03741_ Acquired Imp. Light Armor Plating. 03742_ Extracted 10 matter. 03748_ System corrupted: Component data lost. 03779_ Z7MH39,5OMZAFHN7Y&VC3L#LZGMHK0/,RRBSKU9O A strange signal echoes through the mines. LOCATION=UNKNOWN GOAL=ESCAPE 03786_ ME-RLN: "I came as fast as I could... Wait, it was you!" 03786_ Identified 8R-AWN's Boregun. 03789_ HV Slug penetrates ME-RLN. 03789_ HV Slug penetrates Wall. 03789_ HV Slug penetrates ME-RLN. 03789_ ME-RLN suffers critical hit. 03789_ Destroyed Prototype Device. 03789_ HV Slug penetrates Wall. 03792_ System corrupted: 8R-AWN's Boregun targeting data glitched. 03792_ HV Slug penetrates ME-RLN. 03792_ HV Slug penetrates Wall. Map ----- +----------------------------------------------------+ | ?????????????????????????????????????????????????? | | ?????????????????????????????????????????????????? | | ?????????????????????????????????????????????????? | | ?????????????????????????????????????????????????? | | ?????????????????????????????????????????????????? | | ?????????????????????????????????????????????????? | | ?????????????????????????????????????????????????? | | ?????????????????????????????????????????????????? | | ?????????????????????????????????????????????????? | | ?????????????????????????????????????????????????? | | ??????????????????????? ?????????????????????????? | | ????????????????????? g?????????????????????????? | | ?????????????????????#g ?????????????????????????? | | ?????????????????????# #????????????????????????? | | ????????????????????## g #???????????????????????? | | ????????????????????# ???????????????????????? | | ????????????????????? ???????????????????????? | | ????????????????????? #??????????????????????? | | ?????????????????????? ##?????????????????????? | | ?????????????????????? ##????????????????????? | | ??????????????????????? ?????????????????????? | | ??????????????????????? ?????????????????????? | | ???????????????????????# ??????????????????????? | | ???????????????????????# ??????????????????????? | | ???????????????????????# #??????????????????????? | | ???????????????????????# @#??????????????????????? | | ??????????????????????## ##?????????????????????? | | ?????????????????????## ##????????????????????? | | ?????????????????????# p #????????????????????? | | ?????????????????????# #????????????????????? | | ?????????????????????## ???????????????????? | | ??????????????????????### ?????????????????? | | ????????????????????????###### ???????????????? | | ?????????????????????????????? #?????????????? | | ??????????????????????????????? #????????????? | | ????????????????????????????????""" #???????????? | | ?????????????????????????????????"" #???????????? | | ????????????????????????????????????? ???????????? | | ?????????????????????????????????????????????????? | | ?????????????????????????????????????????????????? | | ?????????????????????????????????????????????????? | | ?????????????????????????????????????????????????? | | ?????????????????????????????????????????????????? | | ?????????????????????????????????????????????????? | | ?????????????????????????????????????????????????? | | ?????????????????????????????????????????????????? | | ?????????????????????????????????????????????????? | | ?????????????????????????????????????????????????? | | ?????????????????????????????????????????????????? | | ?????????????????????????????????????????????????? | +----------------------------------------------------+ Best States ------------- Heat Dissipation 38 Energy Generation 19 Energy Capacity 310 Matter Stores 483 Matter Capacity 500 Sight Range 16 Terrain Scan Density 10 Armor Coverage 225 Resistance: KI 30 Core Shielding 20 Evasion (%) 44 Recoil Reduction 2 Salvage Targeting 2 Item Schematics ----------------- None Robot Schematics ------------------ None Fabricated ------------ Nothing Alien Tech Used ----------------- None Achievements -------------- None Challenges ------------ None Game ------ Seed CentriumHoverCleaver Manual? 0 Play Time 00:25:34 Cumulative 61.4 hours Start 2021.05.29 @ 01:47:10 End 2021.05.29 @ 02:12:45 Sessions 1 Manual Loads 0 Difficulty Rogue Special Mode None Game No. 85 Rogue 85 Adventurer 0 Explorer 0 Win Type - Total 1 Types 1/0/0/0/0/0/0/0/0 Lore% 53 Gallery% 52 Achievement% 41 Wizard Run 0 Options --------- ASCII 0 Keyboard 0 Movement Mouse Keybinds 0 Fullscreen 1 Font 14/Smallcaps Map View 72x54 Tactical HUD 1 Map Filters NONE Filters NONE Steam 1 RUN: 0d4ad846-255c-432d-bac2-38b51136cfc7